bitfinex-derivatives/quotes_BTCF0:USTF0_20251110
["timestamp","ask_amount","ask_price","bid_price","bid_amount"]
[1762801209660,0.43835451,105500.0,105490.0,0.52726433]
[1762801209953,0.342,105500.0,105490.0,0.85838081]
[1762801210151,0.342,105500.0,105490.0,0.62142081]
[1762801210353,0.23045383,105500.0,105490.0,1.45838081]
[1762801210855,0.23045383,105500.0,105490.0,1.53726571]
[1762801211048,0.23045383,105500.0,105490.0,1.30030571]
[1762801211245,0.12545383,105500.0,105490.0,1.39509693]
[1762801211555,0.312,105500.0,105490.0,1.63205693]
[1762801211952,0.32592,105500.0,105490.0,1.61910693]
[1762801212146,0.32592,105500.0,105490.0,0.68735571]
[1762801212349,0.34874,105500.0,105490.0,0.75127433]
[1762801212552,0.34874,105500.0,105490.0,0.51431433]
[1762801212955,0.34874,105500.0,105490.0,0.75127433]
[1762801212956,0.32592,105500.0,105490.0,0.75127433]
[1762801213454,0.32592,105500.0,105490.0,0.92431571]
[1762801214157,0.32592,105500.0,105490.0,0.68735571]
[1762801214455,0.32592,105500.0,105490.0,0.92431571]
[1762801214657,0.32592,105500.0,105490.0,0.68735571]
[1762801214858,0.03698049,105510.0,105500.0,0.0948197]
[1762801215059,0.37698049,105510.0,105500.0,0.62939375]
[1762801215360,0.37698049,105510.0,105500.0,0.45635237]
[1762801215561,0.03145,105530.0,105520.0,0.03826]
[1762801215750,0.03145,105530.0,105520.0,0.49459447]
[1762801215751,0.41646803,105530.0,105520.0,0.49459447]
[1762801216046,0.51126083,105530.0,105520.0,0.03899267]
[1762801216246,1.04510221,105530.0,105520.0,0.00073267]
[1762801216664,1.06769816,105530.0,105520.0,0.00073267]
[1762801217657,1.07069816,105530.0,105520.0,0.00073267]
[1762801218658,1.07469816,105530.0,105520.0,0.00073267]
[1762801218850,1.07469816,105530.0,105510.0,0.09495187]
[1762801218851,0.1541818,105520.0,105510.0,0.01927177]
[1762801219046,0.87717983,105520.0,105510.0,0.00014177]
[1762801219260,1.05022121,105520.0,105510.0,0.00014177]
[1762801219653,0.87717983,105520.0,105510.0,0.09495257]
[1762801219853,1.07269929,105520.0,105510.0,0.09568524]
[1762801220058,1.07269929,105520.0,105510.0,0.00014177]
[1762801220455,1.05222121,105520.0,105510.0,0.00014177]
[1762801220860,1.05222121,105520.0,105510.0,0.09495257]
[1762801221059,1.05522121,105520.0,105510.0,0.09495257]
[1762801221963,1.07769717,105520.0,105510.0,0.09495257]
[1762801222463,1.05522121,105520.0,105510.0,0.09568524]
[1762801223056,1.07769755,105520.0,105510.0,0.09568524]
[1762801223256,0.90465617,105520.0,105510.0,0.00087444]
[1762801223456,1.07769755,105520.0,105510.0,0.09568524]
[1762801223660,1.05522121,105520.0,105510.0,0.09568524]
[1762801223863,1.07769751,105520.0,105510.0,0.09568524]
[1762801224065,1.07769751,105520.0,105510.0,0.00087444]
[1762801224265,1.05522121,105520.0,105510.0,0.09568524]
[1762801225162,1.05522121,105520.0,105510.0,0.00087444]
[1762801225361,1.05522121,105520.0,105510.0,0.09568524]
[1762801226064,0.88217983,105520.0,105510.0,0.13394524]
[1762801229567,0.78737803,105520.0,105510.0,0.13394524]
[1762801229775,0.42657803,105520.0,105510.0,0.13394524]
[1762801229972,0.36719803,105520.0,105510.0,0.98421684]
[1762801230170,0.36719803,105520.0,105510.0,0.81117546]
[1762801230369,0.41141803,105520.0,105510.0,0.81117546]
[1762801230564,0.41141803,105520.0,105510.0,0.57425546]
[1762801230766,0.42428803,105520.0,105510.0,0.21345546]
[1762801231272,0.51908983,105520.0,105510.0,0.21345546]
[1762801231472,0.42428803,105520.0,105510.0,0.81117546]
[1762801231672,0.42428803,105520.0,105510.0,0.54474626]
[1762801231975,0.42428803,105520.0,105510.0,0.45037546]
[1762801232178,0.51909003,105520.0,105510.0,0.57425546]
[1762801232377,0.42428803,105520.0,105510.0,0.45037546]
[1762801232675,0.42428803,105520.0,105510.0,0.57425546]
[1762801232874,0.42428803,105520.0,105510.0,0.81117546]
[1762801233468,0.41141803,105520.0,105510.0,0.81117546]
[1762801233779,0.36719803,105520.0,105510.0,0.83741604]
[1762801234169,0.38899803,105520.0,105510.0,0.60049604]
[1762801234367,0.38899803,105520.0,105510.0,0.83741604]
[1762801234567,0.365,105520.0,105510.0,1.20049604]
[1762801234772,0.365,105520.0,105510.0,1.43741604]
[1762801235771,0.365,105520.0,105510.0,1.20049604]
[1762801235980,0.365,105520.0,105510.0,1.43741604]
[1762801236672,0.365,105520.0,105510.0,1.50545938]
[1762801237675,0.11125111,105520.0,105510.0,1.69460343]
[1762801237874,0.38153353,105520.0,105510.0,1.58885263]
[1762801238182,0.57070603,105520.0,105510.0,0.56278858]
[1762801238683,0.74233353,105520.0,105510.0,0.13394524]
[1762801238876,0.38153353,105520.0,105510.0,0.13394524]
[1762801239179,0.47633523,105520.0,105510.0,0.13594524]
[1762801239577,0.15408973,105520.0,105510.0,0.13594524]
[1762801240381,0.15408973,105520.0,105510.0,0.13794524]
[1762801241486,0.05928803,105520.0,105510.0,0.13794524]
[1762801241783,0.05928803,105520.0,105510.0,0.23231604]
[1762801241986,0.05928803,105520.0,105510.0,0.59311604]
[1762801242684,0.03474861,105530.0,105520.0,0.01378]
[1762801242876,0.05936664,105530.0,105520.0,0.46968347]
[1762801243076,0.05936664,105530.0,105520.0,0.56448517]
[1762801244086,0.05936664,105530.0,105520.0,0.56548517]
[1762801245187,0.15415934,105530.0,105520.0,0.56548517]
[1762801245486,0.15415934,105530.0,105520.0,0.11031437]
[1762801246186,0.15415934,105530.0,105520.0,0.11131437]
[1762801247378,0.15415934,105530.0,105520.0,0.18778909]
[1762801248990,0.05936664,105530.0,105520.0,0.18778909]
[1762801249674,0.15415944,105530.0,105520.0,0.18778909]
[1762801250290,0.15415944,105530.0,105520.0,0.25582983]
[1762801251883,0.51495944,105530.0,105520.0,0.25582983]
[1762801252491,0.15415944,105530.0,105520.0,0.25582983]
[1762801252686,0.15415944,105530.0,105520.0,0.18778909]
[1762801252994,0.05936664,105530.0,105520.0,0.18778909]
[1762801253195,0.15415974,105530.0,105520.0,0.18778909]
[1762801254188,0.05936664,105530.0,105520.0,0.25585861]
[1762801254390,0.68795226,105530.0,105520.0,0.07008351]
[1762801254694,0.1507821,105520.0,105510.0,0.06822528]
[1762801254991,0.68677265,105520.0,105510.0,0.06822528]
[1762801255291,0.68677265,105520.0,105510.0,0.00014177]
[1762801255687,0.68677265,105520.0,105510.0,0.00214177]
[1762801255888,0.51378013,105520.0,105510.0,0.00487444]
[1762801257093,0.51378013,105520.0,105510.0,0.09968544]
[1762801257393,0.51378013,105520.0,105510.0,0.00487444]
[1762801257986,0.68677265,105520.0,105510.0,0.00414177]
[1762801258894,0.51378013,105520.0,105510.0,0.00487444]
[1762801259695,0.68677265,105520.0,105510.0,0.00487444]
[1762801260191,0.1508,105500.0,105490.0,0.04594597]
[1762801260498,0.68688096,105500.0,105490.0,0.01286246]
[1762801260794,0.150809,105490.0,105480.0,0.17111629]
[1762801260981,0.15300703,105490.0,105480.0,0.21522629]
[1762801261184,0.51380703,105490.0,105480.0,0.21522629]
[1762801261384,0.50980703,105490.0,105480.0,0.21522629]
[1762801261795,0.50580703,105490.0,105480.0,0.21522629]
[1762801261990,0.05817803,105490.0,105480.0,0.21922629]
[1762801262192,0.51380703,105490.0,105480.0,0.21922629]
[1762801262796,0.15300703,105490.0,105480.0,0.21922629]
[1762801263090,0.51380703,105490.0,105480.0,0.22322629]
[1762801263292,0.15300703,105490.0,105480.0,0.22322629]
[1762801263491,0.51380703,105490.0,105480.0,0.22322629]
[1762801265293,0.51380703,105490.0,105480.0,0.23710288]
[1762801265595,0.51380703,105490.0,105480.0,0.14227028]
[1762801265895,0.51380703,105490.0,105480.0,0.02187659]
[1762801266189,0.68679955,105490.0,105480.0,0.11671469]
[1762801266591,0.51380703,105490.0,105480.0,0.11671469]
[1762801266795,0.68679955,105490.0,105480.0,0.11671469]
[1762801266997,0.51380703,105490.0,105480.0,0.13822469]
[1762801267791,0.51480703,105490.0,105480.0,0.13022469]
[1762801268997,0.60925337,105490.0,105480.0,0.13022469]
[1762801270589,0.60925337,105490.0,105480.0,0.15282469]
[1762801272000,0.51480713,105490.0,105480.0,0.15282469]
[1762801272894,0.60924031,105490.0,105480.0,0.24725787]
[1762801273399,0.24844031,105490.0,105480.0,0.24725787]
[1762801273998,0.60924031,105490.0,105480.0,0.15282469]
[1762801274197,0.15361121,105490.0,105480.0,0.24725787]
[1762801274594,0.24844021,105490.0,105480.0,0.24725787]
[1762801274797,0.04581803,105490.0,105480.0,0.70663105]
[1762801275199,0.04581803,105490.0,105480.0,0.61219787]
[1762801275504,0.24844011,105490.0,105480.0,0.24725767]
[1762801275691,0.24844011,105490.0,105480.0,0.15282449]
[1762801276899,0.05917803,105490.0,105480.0,0.24725767]
[1762801277104,0.15400693,105490.0,105480.0,0.24725767]
[1762801277404,0.24844011,105490.0,105480.0,0.24725767]
[1762801278605,0.15361121,105490.0,105480.0,0.24725767]
[1762801279001,0.24844011,105490.0,105480.0,0.24725767]
[1762801281505,0.15361121,105490.0,105480.0,0.24725767]
[1762801281706,0.24844011,105490.0,105480.0,0.24725767]
[1762801282106,0.24844011,105490.0,105480.0,0.60805767]
[1762801282107,0.05917803,105490.0,105480.0,0.60805767]
[1762801282305,0.04581803,105490.0,105480.0,0.62119767]
[1762801282700,0.04581803,105490.0,105480.0,0.71563085]
[1762801282906,0.04581803,105490.0,105480.0,0.95263085]
[1762801282907,0.001,105490.0,105480.0,0.95263085]
[1762801284507,0.00023218,105500.0,105490.0,0.02106]
[1762801284805,0.00023218,105500.0,105490.0,0.59777208]
[1762801285004,0.56339598,105520.0,105500.0,0.0948165]
[1762801285204,0.51492121,105520.0,105510.0,0.23204408]
[1762801285506,0.42048803,105520.0,105510.0,0.23204408]
[1762801285705,0.60972321,105520.0,105510.0,0.23204408]
[1762801287007,0.42048803,105520.0,105510.0,0.23204408]
[1762801287217,0.51692121,105520.0,105510.0,0.23204408]
[1762801287414,0.61172321,105520.0,105510.0,0.23204408]
[1762801287602,0.61372321,105520.0,105510.0,0.23204408]
[1762801287802,0.15812121,105520.0,105510.0,0.59284408]
[1762801288710,0.06368803,105520.0,105510.0,0.59284408]
[1762801289013,0.05032803,105520.0,105510.0,0.60249408]
[1762801289201,0.05032803,105520.0,105510.0,0.67800536]
[1762801290112,0.05032803,105520.0,105510.0,0.31720536]
[1762801290113,0.04832803,105520.0,105510.0,0.31720536]
[1762801290312,0.04632803,105520.0,105510.0,0.31720536]
[1762801290511,0.04732803,105520.0,105510.0,0.31720536]
[1762801290713,0.04732803,105520.0,105510.0,0.67800536]
[1762801291310,0.04732803,105520.0,105510.0,0.31720536]
[1762801291509,0.04732803,105520.0,105510.0,0.67800536]
[1762801291817,0.001,105520.0,105510.0,0.91492536]
[1762801292610,0.001,105520.0,105510.0,0.67800536]
[1762801292918,0.001,105520.0,105510.0,0.91592536]
[1762801294111,0.04427177,105530.0,105520.0,0.137602]
[1762801294316,0.0464698,105530.0,105520.0,0.59283518]
[1762801294722,0.0464698,105530.0,105520.0,0.60075518]
[1762801294919,0.1546528,105530.0,105520.0,0.60075518]
[1762801295120,0.0598598,105530.0,105520.0,0.60075518]
[1762801295320,0.0608598,105530.0,105520.0,0.60075518]
[1762801296821,0.0474698,105530.0,105520.0,0.69518836]
[1762801297122,0.00088295,105530.0,105520.0,0.93210836]
[1762801297535,0.24672228,105560.0,105550.0,0.1375751]
[1762801297719,0.24892031,105560.0,105550.0,0.23200828]
[1762801298320,0.15415121,105560.0,105550.0,0.23200828]
[1762801298818,0.16215121,105560.0,105550.0,0.23200828]
[1762801299226,0.61771731,105560.0,105550.0,0.0428]
[1762801300321,0.61771731,105560.0,105550.0,0.11827506]
[1762801300623,0.52328413,105560.0,105550.0,0.1375751]
[1762801300818,0.61771731,105560.0,105550.0,0.1375751]
[1762801301617,0.52328413,105560.0,105550.0,0.1375751]
[1762801301925,0.61771731,105560.0,105550.0,0.1375751]
[1762801302727,0.71215049,105560.0,105550.0,0.0428]
[1762801303327,0.1522951,105550.0,105540.0,0.00014177]
[1762801303627,0.1523221,105520.0,105510.0,0.30754906]
[1762801303828,0.24895331,105520.0,105510.0,0.30754906]
[1762801304216,0.15452013,105520.0,105510.0,0.30754906]
[1762801304417,0.05971803,105520.0,105510.0,0.66834906]
[1762801304821,0.15452013,105520.0,105510.0,0.30754906]
[1762801305220,0.05971803,105520.0,105510.0,0.30754906]
[1762801305426,0.05971803,105520.0,105510.0,0.66834906]
[1762801305625,0.05971803,105520.0,105510.0,0.67034906]
[1762801306421,0.05971803,105520.0,105510.0,0.68317906]
[1762801306623,0.00014177,105530.0,105520.0,0.1472521]
[1762801306823,0.00014177,105530.0,105520.0,0.69691846]
[1762801308230,0.02322177,105530.0,105520.0,0.69691846]
[1762801308932,0.02322177,105530.0,105520.0,0.62597573]
[1762801309123,0.00014177,105530.0,105520.0,0.62597573]
[1762801310631,0.0454998,105530.0,105520.0,0.62597573]
[1762801310827,0.0583398,105530.0,105520.0,0.508052]
[1762801311034,0.1531328,105530.0,105520.0,0.137602]
[1762801311228,0.1531328,105530.0,105520.0,0.0428]
[1762801311229,0.5139328,105530.0,105520.0,0.0428]
[1762801311436,0.63185643,105530.0,105520.0,0.02106]
[1762801311732,0.5139328,105530.0,105520.0,0.02106]
[1762801311934,0.5139328,105530.0,105520.0,0.04298]
[1762801312326,0.5139328,105530.0,105520.0,0.137782]
[1762801312525,0.5139328,105530.0,105520.0,0.04298]
[1762801312838,0.5139328,105530.0,105520.0,0.137782]
[1762801313236,0.5139328,105530.0,105520.0,0.04298]
[1762801313434,0.150802,105520.0,105510.0,0.57482568]
[1762801313633,0.05819803,105520.0,105510.0,0.57482568]
[1762801314038,0.05819803,105520.0,105510.0,0.69274931]
[1762801314233,0.05819803,105520.0,105510.0,0.57482568]
[1762801314740,0.02380803,105520.0,105510.0,0.70557931]
[1762801314938,0.04680803,105520.0,105510.0,0.70657931]
[1762801315542,0.04680803,105520.0,105510.0,0.70757931]
[1762801317141,0.02308177,105530.0,105520.0,0.1499319]
[1762801317337,0.0622198,105530.0,105520.0,0.1402819]
[1762801317541,0.1570127,105530.0,105520.0,0.04548]
[1762801319327,0.1570127,105530.0,105520.0,0.1402819]
[1762801319936,0.0622198,105530.0,105520.0,0.5010819]
[1762801320332,0.0023398,105530.0,105520.0,0.62865553]
[1762801320638,0.0252798,105530.0,105520.0,0.62865553]
[1762801320841,0.0482798,105530.0,105520.0,0.62865553]
[1762801321042,0.1570128,105530.0,105520.0,0.5107319]
[1762801321334,0.1570128,105530.0,105520.0,0.04548]
[1762801321534,0.1546819,105520.0,105510.0,0.57660218]
[1762801321740,0.15687993,105520.0,105510.0,0.48179128]
[1762801322131,0.15687993,105520.0,105510.0,0.57660208]
[1762801322337,0.06207803,105520.0,105510.0,0.57660208]
[1762801322731,0.15687983,105520.0,105510.0,0.57660208]
[1762801323141,0.15687983,105520.0,105510.0,0.57760208]
[1762801323436,0.15687983,105520.0,105510.0,0.12199128]
[1762801323629,0.63560346,105520.0,105510.0,0.001]
[1762801323829,0.1546909,105510.0,105500.0,0.14044097]
[1762801324041,0.15688893,105510.0,105500.0,0.14044097]
[1762801325239,0.15688893,105510.0,105500.0,0.00014177]
[1762801325440,0.27481256,105510.0,105500.0,0.00014177]
[1762801325836,0.15688893,105510.0,105500.0,0.00014177]
[1762801326945,0.63561256,105510.0,105500.0,0.00014177]
[1762801328943,0.1547089,105490.0,105480.0,0.13150969]
[1762801329144,0.15690693,105490.0,105480.0,0.13150969]
[1762801329744,0.15690693,105490.0,105480.0,0.15418969]
[1762801330232,0.15690693,105490.0,105480.0,0.23084235]
[1762801330437,0.63563056,105490.0,105480.0,0.01387659]
[1762801330739,0.1087808,105480.0,105470.0,0.1403203]
[1762801330938,0.15691883,105480.0,105470.0,0.1403203]
[1762801331845,0.06207803,105480.0,105470.0,0.1403203]
[1762801332256,0.06207803,105480.0,105470.0,0.1413203]
[1762801332938,0.06207803,105480.0,105470.0,0.15546284]
[1762801333848,0.06207803,105480.0,105470.0,0.23262613]
[1762801334443,0.15691573,105480.0,105470.0,0.23262613]
[1762801335849,0.06207803,105480.0,105470.0,0.23262613]
[1762801336751,0.15691573,105480.0,105470.0,0.23262613]
[1762801338556,0.15691573,105480.0,105470.0,0.59342613]
[1762801339144,0.06207803,105480.0,105470.0,0.59342613]
[1762801339946,0.15691583,105480.0,105470.0,0.59342613]
[1762801340349,0.15691583,105480.0,105470.0,0.23262613]
[1762801341448,0.61216031,105480.0,105470.0,0.06062254]
[1762801341756,0.70660479,105480.0,105470.0,0.01514254]
[1762801341946,0.61216031,105480.0,105470.0,0.01514254]
[1762801342254,0.05748,105470.0,105460.0,0.00010873]
[1762801342450,0.05748,105450.0,105440.0,0.21246847]
[1762801342756,0.15454273,105450.0,105440.0,0.47840187]
[1762801343456,0.24908013,105450.0,105440.0,0.12060187]
[1762801343753,0.60988013,105450.0,105440.0,0.01610096]
[1762801343954,0.60988013,105450.0,105440.0,0.15464657]
[1762801344156,0.42057095,105450.0,105440.0,0.15464657]
[1762801344456,0.15463565,105450.0,105440.0,0.15464657]
[1762801344755,0.05977095,105450.0,105440.0,0.15464657]
[1762801345455,0.05977095,105450.0,105440.0,0.60262161]
[1762801345757,0.05977095,105450.0,105440.0,0.77587644]
[1762801345758,0.00229095,105450.0,105440.0,0.77587644]
[1762801345952,0.00229095,105450.0,105440.0,0.77287644]
[1762801346154,9.292e-05,105450.0,105440.0,0.77387644]
[1762801346657,0.00229095,105450.0,105440.0,0.77387644]
[1762801347355,9.292e-05,105450.0,105440.0,0.77187644]
[1762801349657,0.00229095,105450.0,105440.0,0.77187644]
[1762801350152,0.00014177,105460.0,105450.0,0.1503748]
[1762801350360,0.0023398,105460.0,105450.0,0.68442963]
[1762801350955,0.0023398,105460.0,105450.0,0.68546154]
[1762801351354,0.0477598,105460.0,105450.0,0.51220671]
[1762801352260,0.0487598,105460.0,105450.0,0.51220671]
[1762801356360,0.0618198,105460.0,105450.0,0.49933671]
[1762801356859,0.0487598,105460.0,105450.0,0.51220671]
[1762801357857,0.1436156,105460.0,105450.0,0.15140671]
[1762801358058,0.5174756,105460.0,105450.0,0.04367191]
[1762801358456,0.0618198,105460.0,105450.0,0.13853671]
[1762801358660,0.0043398,105460.0,105450.0,0.68546154]
[1762801359169,0.0261898,105460.0,105450.0,0.68546154]
[1762801359464,0.1436156,105460.0,105450.0,0.68546154]
[1762801359664,0.1566756,105460.0,105450.0,0.13853671]
[1762801360063,0.1566756,105460.0,105450.0,0.04367191]
[1762801360263,0.1566756,105460.0,105450.0,0.13853671]
[1762801360458,0.5174756,105460.0,105450.0,0.13853671]
[1762801361066,0.1566756,105460.0,105450.0,0.13853671]
[1762801361967,0.5174756,105460.0,105450.0,0.13853671]
[1762801362168,0.1566756,105460.0,105450.0,0.13853671]
[1762801362367,0.5174756,105460.0,105450.0,0.13853671]
[1762801362669,0.1566756,105460.0,105450.0,0.13853671]
[1762801363669,0.5174756,105460.0,105450.0,0.04367191]
[1762801364366,0.5174756,105460.0,105450.0,0.00103191]
[1762801365564,0.69073043,105460.0,105450.0,0.00103191]
[1762801365866,0.5174756,105460.0,105450.0,0.00103191]
[1762801366171,0.69073043,105460.0,105450.0,0.00103191]
[1762801366870,0.61199205,105460.0,105450.0,0.00103191]
[1762801373666,0.5174756,105460.0,105450.0,0.04572191]
[1762801373870,0.5174756,105460.0,105450.0,0.14058671]
[1762801374271,0.1566756,105460.0,105450.0,0.23510316]
[1762801374471,0.1566756,105460.0,105450.0,0.24797316]
[1762801375067,0.1566756,105460.0,105450.0,0.14058671]
[1762801375268,0.5174756,105460.0,105450.0,0.14058671]
[1762801375475,0.1566756,105460.0,105450.0,0.14058671]
[1762801375867,0.5174756,105460.0,105450.0,0.14058671]
[1762801376268,0.1566756,105460.0,105450.0,0.14058671]
[1762801376474,0.5174756,105460.0,105450.0,0.14058671]
[1762801377282,0.1566756,105460.0,105450.0,0.14058671]
[1762801377569,0.0487598,105460.0,105450.0,0.60877316]
[1762801378277,0.1436156,105460.0,105450.0,0.60877316]
[1762801378472,0.0487598,105460.0,105450.0,0.60877316]
[1762801378773,0.0043398,105460.0,105450.0,0.60877316]
[1762801378970,0.56832684,105450.0,105440.0,0.47877766]
[1762801379174,0.56832684,105450.0,105440.0,0.75266542]
[1762801379369,0.53332684,105450.0,105440.0,0.84749259]
[1762801379668,0.53332684,105450.0,105440.0,0.99971773]
[1762801380178,0.53332684,105450.0,105440.0,1.08486153]
[1762801380479,0.49807634,105450.0,105440.0,2.60657153]
[1762801380666,0.49807634,105450.0,105440.0,2.52142773]
[1762801381067,0.49807634,105450.0,105440.0,2.37049036]
[1762801381386,0.49807634,105450.0,105440.0,2.52242773]
[1762801381571,0.49807634,105450.0,105440.0,2.28534773]
[1762801381772,0.49807634,105450.0,105440.0,2.28434773]
[1762801381972,0.49807634,105450.0,105440.0,2.52342773]
[1762801382179,0.49807634,105450.0,105440.0,2.28634773]
[1762801382364,0.49807634,105450.0,105440.0,2.52342773]
[1762801382766,0.49807634,105450.0,105440.0,2.66630782]
[1762801383171,0.49807634,105450.0,105440.0,2.42922782]
[1762801383369,0.49807634,105450.0,105440.0,2.66630782]
[1762801383574,0.01332177,105460.0,105440.0,2.66630782]
[1762801383876,0.00014177,105460.0,105450.0,0.8817777]
[1762801384579,9.1e-06,105460.0,105450.0,0.97660487]
[1762801384788,9.1e-06,105460.0,105450.0,0.73952487]
[1762801384980,0.01394,105480.0,105460.0,0.0948528]
[1762801385279,0.39539,105490.0,105480.0,0.0948378]
[1762801385479,0.41985803,105490.0,105480.0,0.18935425]
[1762801385683,0.05905803,105490.0,105480.0,0.2838707]
[1762801385870,0.03678803,105490.0,105480.0,0.2838707]
[1762801386070,0.03678803,105490.0,105480.0,0.5208707]
[1762801386679,0.03678803,105490.0,105480.0,0.3587738]
[1762801386974,0.01306,105490.0,105480.0,0.9565738]
[1762801387282,0.01506,105490.0,105480.0,0.7195738]
[1762801387578,0.01506,105490.0,105480.0,0.9565738]
[1762801387783,0.002,105490.0,105480.0,1.051374]
[1762801388172,0.002,105490.0,105480.0,0.814374]
[1762801388382,0.002,105490.0,105480.0,1.13647032]
[1762801388584,0.002,105490.0,105480.0,0.89947032]
[1762801388886,0.002,105490.0,105480.0,1.1204574]
[1762801389382,0.002,105490.0,105480.0,1.26253388]
[1762801389583,0.002,105490.0,105480.0,1.02553388]
[1762801389781,0.002,105490.0,105480.0,1.26253388]
[1762801389979,0.01518,105490.0,105480.0,1.86253388]
[1762801390176,0.002,105490.0,105480.0,1.86253388]
[1762801390683,0.002,105490.0,105480.0,1.62553388]
[1762801390875,0.01518,105490.0,105480.0,1.86253388]
[1762801391380,0.06117803,105490.0,105480.0,0.79836108]
[1762801391579,0.06117803,105490.0,105480.0,0.70356088]
[1762801391979,0.06117803,105490.0,105480.0,0.94056088]
[1762801392379,0.03890803,105490.0,105480.0,0.94056088]
[1762801393086,0.03890803,105490.0,105480.0,0.70356088]
[1762801393385,0.03890803,105490.0,105480.0,0.94056088]
[1762801393582,0.002,105490.0,105480.0,0.79836108]
[1762801394080,0.002,105490.0,105480.0,1.05896108]
[1762801394282,0.002,105490.0,105480.0,1.42196108]
[1762801394484,0.01332177,105500.0,105490.0,0.0948288]
[1762801394687,0.01332177,105500.0,105490.0,0.62864878]
[1762801394981,0.01332177,105500.0,105490.0,0.86560878]
[1762801395182,0.01332177,105500.0,105490.0,0.96040898]
[1762801395788,0.00014177,105500.0,105490.0,0.72344898]
[1762801396087,0.01532177,105500.0,105490.0,0.96040898]
[1762801396387,0.01732177,105500.0,105490.0,0.96040898]
[1762801396682,0.01732177,105500.0,105490.0,0.72344898]
[1762801396888,0.01732177,105500.0,105490.0,0.90534505]
[1762801397086,0.0633198,105500.0,105490.0,0.787389]
[1762801397284,0.0633198,105500.0,105490.0,0.66838505]
[1762801397481,0.0633198,105500.0,105490.0,0.30758505]
[1762801397683,0.0633198,105500.0,105490.0,0.66838505]
[1762801399475,0.0633198,105500.0,105490.0,0.90534505]
[1762801399681,0.01732177,105500.0,105490.0,0.90534505]
[1762801400086,0.39692,105520.0,105500.0,0.1896395]
[1762801400287,0.42088803,105520.0,105510.0,0.21276685]
[1762801400790,0.42088803,105520.0,105500.0,0.57357575]
[1762801400791,0.05774,105510.0,105500.0,0.57357575]
[1762801400992,0.05774,105500.0,105490.0,1.50286345]
[1762801401185,0.05993803,105500.0,105490.0,1.50286345]
[1762801401785,0.01522803,105500.0,105490.0,1.50286345]
[1762801402084,0.05993803,105500.0,105490.0,1.50286345]
[1762801402487,0.05993803,105500.0,105490.0,1.14406345]
[1762801403089,0.05993803,105500.0,105490.0,1.14606345]
[1762801404095,0.05993803,105500.0,105490.0,1.50686345]
[1762801404391,0.03597,105500.0,105490.0,1.50686345]
[1762801404592,0.05993803,105500.0,105490.0,1.14606345]
[1762801404990,0.05993803,105500.0,105490.0,1.50686345]
[1762801405586,0.05993803,105500.0,105490.0,1.14606345]
[1762801406087,0.51555783,105500.0,105490.0,0.0988274]
[1762801406287,0.51555783,105500.0,105490.0,0.004]
[1762801406685,0.51555783,105500.0,105490.0,0.0988288]
[1762801408084,0.51555783,105500.0,105490.0,0.0968288]
[1762801408286,0.51555783,105500.0,105490.0,0.0978288]
[1762801408592,0.51555783,105500.0,105490.0,0.0968288]
[1762801408797,0.51555783,105500.0,105490.0,0.002]
[1762801408998,0.51555783,105500.0,105490.0,0.0968288]
[1762801409683,0.42073803,105500.0,105490.0,0.0968288]
[1762801409888,0.42073803,105500.0,105490.0,0.21478485]
[1762801410999,0.42073803,105500.0,105490.0,0.191224]
[1762801412899,0.51555783,105500.0,105490.0,0.191224]
[1762801413200,0.05993803,105500.0,105490.0,0.191224]
[1762801413400,0.42073803,105500.0,105490.0,0.191224]
[1762801413601,0.51555783,105500.0,105490.0,0.191224]
[1762801413800,0.42073803,105500.0,105490.0,0.191224]
[1762801414191,0.05993803,105500.0,105490.0,0.191224]
[1762801415000,0.42073803,105500.0,105490.0,0.191224]
[1762801415198,0.51555783,105500.0,105490.0,0.191224]
[1762801415502,0.42073803,105500.0,105490.0,0.191224]
[1762801416196,0.05993803,105500.0,105490.0,0.191224]
[1762801416396,0.42073803,105500.0,105490.0,0.191224]
[1762801422498,0.05993803,105500.0,105490.0,0.191224]
[1762801423504,0.0257964,105500.0,105490.0,0.27632032]
[1762801423706,0.0388264,105500.0,105490.0,0.27632032]
[1762801425705,0.3996264,105500.0,105490.0,0.27632032]
[1762801426099,0.0388264,105500.0,105490.0,0.27632032]
[1762801428008,0.0388264,105500.0,105490.0,0.37071552]
[1762801428303,0.03662837,105500.0,105490.0,0.73151552]
[1762801428505,0.0388264,105500.0,105490.0,0.73151552]
[1762801428810,0.0388264,105500.0,105490.0,0.27632032]
[1762801429610,0.0388264,105500.0,105490.0,0.37071552]
[1762801430412,0.0388264,105500.0,105490.0,0.2856192]
[1762801430804,0.0388264,105500.0,105490.0,0.191224]
[1762801431012,0.3996264,105500.0,105490.0,0.27644778]
[1762801431204,0.0388264,105500.0,105490.0,0.27644778]
[1762801433505,0.0388264,105500.0,105490.0,0.191224]
[1762801433906,0.4944462,105500.0,105490.0,0.27647672]
[1762801434309,0.3996264,105500.0,105490.0,0.27647672]
[1762801434608,0.0388264,105500.0,105490.0,0.63727672]
[1762801434814,0.0388264,105500.0,105490.0,0.552024]
[1762801435116,0.0388264,105500.0,105490.0,0.6464192]
[1762801435506,0.00490165,105500.0,105490.0,0.30993095]
[1762801435811,0.04897165,105500.0,105490.0,0.67073095]
[1762801438013,0.04897165,105500.0,105490.0,0.76512615]
[1762801440316,0.04897165,105500.0,105490.0,0.67073095]
[1762801440717,0.04897165,105500.0,105490.0,0.30993095]
[1762801441402,0.01483131,105500.0,105490.0,0.67292898]
[1762801441608,0.05073954,105500.0,105490.0,0.31212898]
[1762801442313,0.05073954,105500.0,105490.0,0.40652418]
[1762801443313,0.05073954,105500.0,105490.0,0.57853378]
[1762801443525,0.05073954,105500.0,105490.0,0.40652418]
[1762801444318,0.05073954,105500.0,105490.0,0.31212898]
[1762801444825,0.00072823,105500.0,105490.0,0.76732418]
[1762801445019,0.05724177,105510.0,105500.0,0.0948198]
[1762801445321,0.03533177,105510.0,105500.0,0.7318914]
[1762801445520,0.03533177,105510.0,105500.0,0.76531518]
[1762801445720,0.05724177,105510.0,105500.0,0.76531518]
[1762801446516,0.05724177,105510.0,105500.0,0.57652478]
[1762801446714,0.05797,105510.0,105500.0,0.76531518]
[1762801447424,0.05797,105510.0,105500.0,0.76731518]
[1762801448118,0.05797,105510.0,105500.0,0.76931518]
[1762801448318,0.03606,105510.0,105500.0,0.76931518]
[1762801448518,0.05797,105510.0,105500.0,0.76931518]
[1762801449118,0.05797,105510.0,105500.0,0.58052478]
[1762801449325,0.05797,105510.0,105500.0,0.40851518]
[1762801449823,0.05797,105510.0,105500.0,0.76931518]
[1762801450119,0.05797,105510.0,105500.0,0.58052478]
[1762801450325,0.05797,105510.0,105500.0,0.21972478]
[1762801450520,0.05797,105510.0,105500.0,0.40851518]
[1762801451124,0.05797,105510.0,105500.0,0.76931518]
[1762801451526,0.00014177,105510.0,105500.0,0.95849261]
[1762801451721,0.00014177,105510.0,105500.0,1.19545261]
[1762801452225,0.00014177,105510.0,105500.0,0.83978566]
[1762801452614,0.00014177,105510.0,105500.0,1.21815093]
[1762801452825,0.05725,105530.0,105520.0,0.0948018]